[Event "IIFL Wealth 4th Mumbai Open"]
[Site "Mumbai"]
[Date "2018.12.31"]
[Round "2"]
[White "Shivasubramanian, R."]
[Black "Laddha, Yash Jayesh"]
[Result "1-0"]
[ECO "A45"]
[WhiteElo "1738"]
[BlackElo "1449"]
[Annotator "NA"]
[PlyCount "107"]
[EventDate "2018.12.30"]
[EventType "swiss"]
[EventCountry "IND"]
[SourceTitle "playchess.com"]
[Source "ChessBase"]
[SourceQuality "1"]
[TimeControl "40/5400+30:1800+30"]

1. d4 {[%emt 0:00:00]} Nf6 {[%emt 0:00:00]} 2. Bf4 {[%emt 0:00:00]} e6 {[%emt 0:00:00]} 3. Nf3 {[%emt 0:00:21]} c5 {[%emt 0:00:06]} 4. e3 {[%emt 0:01:14]} d5 {[%emt 0:00:09]} 5. c3 {[%emt 0:00:17]} Nc6 {[%emt 0:00:21]} 6. Nbd2 {[%emt 0:00:06]} Bd6 {[%emt 0:00:27]} 7. Bg3 {[%emt 0:01:04]} O-O {[%emt 0:00:34]} 8. Bd3 {[%emt 0:00:22]} Qe7 {[%emt 0:02:54]} 9. Ne5 {[%emt 0:03:49]} Bd7 {[%emt 0:08:22]} 10. f4 {[%emt 0:01:18]} c4 {[%emt 0:07:58]} 11. Bb1 {[%emt 0:01:09]} Qd8 {[%emt 0:20:52]} 12. O-O {[%emt 0:10:19]} h6 {[%emt 0:17:37]} 13. Bh4 {[%emt 0:03:13]} Be7 {[%emt 0:09:14]} 14. Qc2 {[%emt 0:01:01]} Ne4 {[%emt 0:02:17]} 15. Bxe7 {[%emt 0:05:36]} Qxe7 {[%emt 0:02:27]} 16. Nxe4 {[%emt 0:00:11]} dxe4 {[%emt 0:00:14]} 17. Qxe4 {[%emt 0:02:46]} f5 {[%emt 0:00:36]} 18. Qf3 {[%emt 0:00:24]} Nxe5 {[%emt 0:00:53]} 19. fxe5 {[%emt 0:00:03]} Bc6 {[%emt 0:01:55]} 20. Qg3 {[%emt 0:01:07]} Qe8 {[%emt 0:03:58]} 21. Bc2 {[%emt 0:03:00]} g5 {[%emt 0:03:59]} 22. Bd1 {[%emt 0:04:19]} Qg6 {[%emt 0:01:22]} 23. Bf3 {[%emt 0:03:46]} Bxf3 {[%emt 0:03:17]} 24. Qxf3 {[%emt 0:00:10]} Rf7 {[%emt 0:00:49]} 25. Qe2 {[%emt 0:02:54]} Rc8 {[%emt 0:01:01]} 26. Rad1 {[%emt 0:02:15]} Rd7 {[%emt 0:00:47]} 27. g4 {[%emt 0:01:56]} b5 {[%emt 0:07:28]} 28. gxf5 {[%emt 0:05:15]} exf5 {[%emt 0:00:17]} 29. Qf3 {[%emt 0:00:25]} Rf7 {[%emt 0:02:00]} 30. Qd5 {[%emt 0:02:08]} a6 {[%emt 0:01:01]} 31. Rd2 {[%emt 0:04:17]} Re8 {[%emt 0:01:18]} 32. Rdf2 {[%emt 0:00:16]} Kg7 {[%emt 0:00:20]} 33. Qf3 {[%emt 0:02:30]} f4 {[%emt 0:00:56]} 34. exf4 {[%emt 0:00:16]} Rxf4 {[%emt 0:00:24]} 35. Qxf4 {[%emt 0:01:20]} gxf4+ {[%emt 0:00:05]} 36. Rg2 {[%emt 0:00:04]} Rf8 {[%emt 0:00:19]} 37. Rxg6+ {[%emt 0:00:07]} Kxg6 {[%emt 0:00:18]} 38. Kg2 {[%emt 0:00:03]} Kf5 {[%emt 0:00:18]} 39. Kf3 {[%emt 0:00:22]} Rg8 {[%emt 0:01:45]} 40. Re1 {[%emt 0:00:00]} Re8 {[%emt 0:00:00]} 41. e6 {[%emt 0:00:15]} Rxe6 {[%emt 0:03:44]} 42. Rxe6 {[%emt 0:00:13]} Kxe6 {[%emt 0:01:13]} 43. Kxf4 {[%emt 0:00:02]} Kd5 {[%emt 0:00:50]} 44. h4 {[%emt 0:00:12]} a5 {[%emt 0:00:19]} 45. h5 {[%emt 0:00:18]} b4 {[%emt 0:00:07]} 46. a3 {[%emt 0:00:05]} b3 {[%emt 0:00:45]} 47. Kf5 {[%emt 0:00:11]} a4 {[%emt 0:00:03]} 48. Kf4 {[%emt 0:00:07]} Ke6 {[%emt 0:00:09]} 49. Ke4 {[%emt 0:00:07]} Kf6 {[%emt 0:00:08]} 50. d5 {[%emt 0:00:03]} Ke7 {[%emt 0:00:23]} 51. Kd4 {[%emt 0:00:10]} Kd6 {[%emt 0:00:16]} 52. Kxc4 {[%emt 0:00:04]} Kd7 {[%emt 0:00:12]} 53. Kb5 {[%emt 0:00:05]} Kd6 {[%emt 0:00:03]} 54. c4 {Kxd5} 1-0

[Event "IIFL Wealth 4th Mumbai Open"]
[Site "Mumbai"]
[Date "2018.12.31"]
[Round "2"]
[White "Sawant, Akshay"]
[Black "Kriti, Mayur Patel"]
[Result "1-0"]
[ECO "C22"]
[WhiteElo "1716"]
[BlackElo "1439"]
[Annotator "NA"]
[PlyCount "59"]
[EventDate "2018.12.30"]
[EventType "swiss"]
[EventCountry "IND"]
[SourceTitle "playchess.com"]
[Source "ChessBase"]
[SourceQuality "1"]
[TimeControl "40/5400+30:1800+30"]

1. e4 {[%emt 0:00:00]} e5 {[%emt 0:00:00]} 2. d4 {[%emt 0:00:00]} exd4 {[%emt 0:00:00]} 3. Qxd4 {[%emt 0:00:00]} Nc6 {[%emt 0:00:17]} 4. Qe3 {[%emt 0:00:00]} d6 {[%emt 0:04:28]} 5. Nc3 {[%emt 0:00:06]} Be6 {[%emt 0:02:50]} 6. f4 {[%emt 0:03:44]} Nf6 {[%emt 0:02:20]} 7. Bb5 {[%emt 0:04:33]} Be7 {[%emt 0:02:30]} 8. Nf3 {[%emt 0:11:26]} O-O {[%emt 0:01:46]} 9. f5 {[%emt 0:01:15]} Bd7 {[%emt 0:01:14]} 10. Bd2 {[%emt 0:05:20]} Re8 {[%emt 0:02:14]} 11. O-O-O {[%emt 0:03:23]} Bf8 12. Qf4 {[%emt 0:06:43]} a6 {[%emt 0:04:46]} 13. Bd3 {[%emt 0:02:25]} b5 {[%emt 0:03:44]} 14. g4 {[%emt 0:01:35]} h6 {[%emt 0:10:31]} 15. h4 {[%emt 0:10:31]} Nh7 {[%emt 0:04:43]} 16. g5 {[%emt 0:09:14]} Kh8 {[%emt 0:02:17]} 17. gxh6 {[%emt 0:00:55]} gxh6 {[%emt 0:00:31]} 18. Rdg1 {[%emt 0:02:13]} Bg7 {[%emt 0:03:32]} 19. Rxg7 {[%emt 0:02:38]} Qf6 {[%emt 0:05:45]} 20. Rg2 {[%emt 0:03:30]} h5 {[%emt 0:01:43]} 21. Nd5 {[%emt 0:00:19]} Qd8 {[%emt 0:00:22]} 22. Qh6 {[%emt 0:00:26]} Rg8 {[%emt 0:01:06]} 23. Rhg1 {[%emt 0:00:02]} Rxg2 {[%emt 0:01:23]} 24. Rxg2 {[%emt 0:00:03]} Qf8 {[%emt 0:00:12]} 25. Qxh5 {[%emt 0:00:47]} f6 {[%emt 0:01:35]} 26. Bh6 {[%emt 0:07:14]} Qb8 {[%emt 0:00:47]} 27. Bg7+ {[%emt 0:00:21]} Kg8 {[%emt 0:00:04]} 28. Bxf6+ {[%emt 0:00:08]} Kf8 {[%emt 0:00:12]} 29. Qxh7 {[%emt 0:00:22]} Bc8 {[%emt 0:00:35]} 30. Rg8# {[%emt 0:00:04]} 1-0

[Event "IIFL Wealth 4th Mumbai Open"]
[Site "Mumbai"]
[Date "2018.12.31"]
[Round "2"]
[White "Deepak, Rai"]
[Black "Dande, Vyankatesh S"]
[Result "1-0"]
[ECO "D00"]
[WhiteElo "1710"]
[BlackElo "1418"]
[Annotator "NA"]
[PlyCount "55"]
[EventDate "2018.12.30"]
[EventType "swiss"]
[EventCountry "IND"]
[SourceTitle "playchess.com"]
[Source "ChessBase"]
[SourceQuality "1"]
[TimeControl "40/5400+30:1800+30"]

1. d4 {[%emt 0:00:00]} d5 {[%emt 0:00:00]} 2. Bf4 {[%emt 0:00:01]} Nf6 {[%emt 0:00:20]} 3. e3 {[%emt 0:01:17]} Bf5 {[%emt 0:00:27]} 4. c4 {[%emt 0:01:11]} e6 {[%emt 0:00:16]} 5. Nc3 {[%emt 0:00:57]} c5 {[%emt 0:00:47]} 6. Qb3 {[%emt 0:11:59]} cxd4 {[%emt 0:06:35]} 7. exd4 {[%emt 0:02:04]} Nc6 {[%emt 0:01:12]} 8. Nf3 {[%emt 0:02:38]} dxc4 {[%emt 0:08:19]} 9. Bxc4 {[%emt 0:04:43]} Bb4 {[%emt 0:09:36]} 10. O-O {[%emt 0:11:44]} O-O {[%emt 0:00:35]} 11. Rad1 {[%emt 0:04:00]} Bg4 {[%emt 0:02:18]} 12. d5 {[%emt 0:12:07]} exd5 {[%emt 0:21:48]} 13. Nxd5 {[%emt 0:03:21]} Nxd5 {[%emt 0:02:47]} 14. Rxd5 {[%emt 0:02:32]} Qb6 {[%emt 0:06:56]} 15. Rb5 {[%emt 0:02:25]} Qd8 {[%emt 0:03:55]} 16. Rxb4 {[%emt 0:00:52]} Nxb4 {[%emt 0:01:31]} 17. Qxb4 Be6 {[%emt 0:02:43]} 18. Bxe6 {[%emt 0:05:09]} fxe6 {[%emt 0:00:22]} 19. Re1 {[%emt 0:00:55]} Qd5 {[%emt 0:05:46]} 20. Bg3 {[%emt 0:06:19]} Rac8 {[%emt 0:06:42]} 21. a3 {[%emt 0:03:10]} Rc4 {[%emt 0:05:16]} 22. Qe7 {[%emt 0:07:07]} Rc6 {[%emt 0:02:09]} 23. h3 {[%emt 0:03:47]} Rb6 {[%emt 0:03:15]} 24. Ng5 {[%emt 0:04:40]} Rxb2 {[%emt 0:01:17]} 25. Be5 {[%emt 0:01:00]} Rf6 {[%emt 0:01:51]} 26. Bxf6 {[%emt 0:00:52]} gxf6 {[%emt 0:00:12]} 27. Qf7+ {[%emt 0:00:06]} Kh8 {[%emt 0:00:03]} 28. Qxh7# {[%emt 0:01:21]} 1-0

[Event "IIFL Wealth 4th Mumbai Open"]
[Site "Mumbai"]
[Date "2018.12.31"]
[Round "2"]
[White "Joglekar, Abhijit"]
[Black "Swara, Lakshmi S Nair"]
[Result "1-0"]
[ECO "B92"]
[WhiteElo "1692"]
[BlackElo "1415"]
[Annotator "NA"]
[PlyCount "95"]
[EventDate "2018.12.30"]
[EventType "swiss"]
[EventCountry "IND"]
[SourceTitle "playchess.com"]
[Source "ChessBase"]
[SourceQuality "1"]
[TimeControl "40/5400+30:1800+30"]

1. e4 {[%emt 0:22:22]} c5 {[%emt 0:00:07]} 2. Nf3 {[%emt 0:00:05]} d6 {[%emt 0:00:26]} 3. d4 {[%emt 0:01:54]} cxd4 {[%emt 0:00:18]} 4. Nxd4 {[%emt 0:00:06]} Nf6 {[%emt 0:01:07]} 5. Nc3 {[%emt 0:00:05]} a6 {[%emt 0:00:03]} 6. Be2 {[%emt 0:00:50]} e5 {[%emt 0:01:09]} 7. Nb3 {[%emt 0:00:47]} Be7 {[%emt 0:00:45]} 8. Be3 {[%emt 0:00:30]} Be6 {[%emt 0:03:35]} 9. f3 {[%emt 0:00:28]} Nbd7 {[%emt 0:01:04]} 10. Qd2 {[%emt 0:01:41]} Qc7 {[%emt 0:02:06]} 11. Rd1 {[%emt 0:01:41]} b5 {[%emt 0:00:43]} 12. a3 {[%emt 0:01:37]} Rc8 {[%emt 0:01:19]} 13. O-O {[%emt 0:03:22]} O-O {[%emt 0:00:20]} 14. g4 {[%emt 0:00:34]} Rfd8 {[%emt 0:03:35]} 15. Qe1 {[%emt 0:04:10]} Nb6 {[%emt 0:01:25]} 16. g5 {[%emt 0:02:25]} Nfd7 {[%emt 0:01:07]} 17. Qg3 {[%emt 0:10:30]} Nc4 {[%emt 0:03:27]} 18. Bxc4 {[%emt 0:00:28]} Bxc4 {[%emt 0:00:12]} 19. Rf2 {[%emt 0:00:42]} Be6 {[%emt 0:06:04]} 20. h4 {[%emt 0:02:26]} Nb6 {[%emt 0:01:11]} 21. f4 {[%emt 0:08:37]} Bf8 {[%emt 0:06:04]} 22. f5 {[%emt 0:00:28]} Bc4 {[%emt 0:00:48]} 23. g6 {[%emt 0:01:20]} Kh8 {[%emt 0:01:56]} 24. gxh7 {[%emt 0:07:01]} f6 {[%emt 0:01:01]} 25. Nd2 {[%emt 0:07:30]} Bf7 {[%emt 0:06:07]} 26. Nf3 {[%emt 0:00:29]} Nc4 {[%emt 0:01:11]} 27. Bc1 {[%emt 0:00:35]} Nxa3 {[%emt 0:01:18]} 28. Kh2 {[%emt 0:00:39]} b4 {[%emt 0:04:26]} 29. Rg1 {[%emt 0:03:33]} bxc3 {[%emt 0:02:06]} 30. bxa3 {[%emt 0:00:05]} Rd7 {[%emt 0:01:51]} 31. Rfg2 {[%emt 0:00:54]} Ba2 {[%emt 0:02:22]} 32. h5 {[%emt 0:00:52]} d5 {[%emt 0:03:07]} 33. h6 {[%emt 0:00:57]} dxe4 {[%emt 0:02:10]} 34. Nh4 {[%emt 0:00:39]} Kxh7 {[%emt 0:03:35]} 35. Qg6+ {[%emt 0:00:51]} Kh8 {[%emt 0:01:28]} 36. hxg7+ {[%emt 0:01:14]} Bxg7 {[%emt 0:02:11]} 37. Qh5+ {[%emt 0:00:29]} Kg8 {[%emt 0:00:23]} 38. Bh6 {[%emt 0:00:33]} Kf8 {[%emt 0:01:41]} 39. Bxg7+ {[%emt 0:00:44]} Rxg7 {[%emt 0:01:07]} 40. Qh8+ {[%emt 0:00:00]} Rg8 {[%emt 0:00:00]} 41. Rxg8+ {[%emt 0:00:34]} Bxg8 {[%emt 0:01:46]} 42. Rxg8+ {[%emt 0:00:21]} Ke7 {[%emt 0:00:22]} 43. Rxc8 {[%emt 0:00:15]} Qd6 {[%emt 0:00:38]} 44. Qf8+ {[%emt 0:00:09]} Kd7 {[%emt 0:00:06]} 45. Rd8+ {[%emt 0:00:06]} Kc7 {[%emt 0:00:13]} 46. Qxd6+ {[%emt 0:00:06]} Kb7 {[%emt 0:00:05]} 47. Rd7+ {[%emt 0:00:07]} Ka8 {[%emt 0:00:10]} 48. Qf8# 1-0

[Event "IIFL Wealth 4th Mumbai Open"]
[Site "Mumbai"]
[Date "2018.12.31"]
[Round "2"]
[White "Mishra, Sanjeev"]
[Black "Sancheria, Vishal"]
[Result "1/2-1/2"]
[ECO "B14"]
[WhiteElo "1662"]
[BlackElo "1414"]
[Annotator "NA"]
[PlyCount "126"]
[EventDate "2018.12.30"]
[EventType "swiss"]
[EventCountry "IND"]
[SourceTitle "playchess.com"]
[Source "ChessBase"]
[SourceQuality "1"]
[TimeControl "40/5400+30:1800+30"]

1. e4 {[%emt 0:02:03]} c6 {[%emt 0:00:00]} 2. d4 {[%emt 0:00:38]} d5 {[%emt 0:00:00]} 3. exd5 {[%emt 0:00:16]} cxd5 {[%emt 0:00:26]} 4. c4 {[%emt 0:00:07]} Nf6 {[%emt 0:00:57]} 5. Nc3 {[%emt 0:03:15]} g6 {[%emt 0:03:14]} 6. Nf3 {[%emt 0:01:14]} Bg7 {[%emt 0:01:27]} 7. cxd5 Nxd5 {[%emt 0:05:01]} 8. Bb5+ {[%emt 0:01:17]} Bd7 {[%emt 0:00:50]} 9. Qb3 {[%emt 0:01:27]} Nxc3 {[%emt 0:05:37]} 10. Bxd7+ {[%emt 0:02:36]} Qxd7 {[%emt 0:04:24]} 11. bxc3 {[%emt 0:00:15]} O-O {[%emt 0:00:27]} 12. O-O {[%emt 0:00:15]} Nc6 {[%emt 0:00:41]} 13. Rb1 {[%emt 0:02:32]} b6 {[%emt 0:03:16]} 14. Qa4 {[%emt 0:02:26]} Ne5 {[%emt 0:02:03]} 15. Qxd7 {[%emt 0:00:19]} Nxd7 {[%emt 0:00:20]} 16. Re1 {[%emt 0:00:36]} Rfe8 {[%emt 0:01:20]} 17. Bf4 {[%emt 0:05:04]} Rac8 {[%emt 0:05:33]} 18. Rb3 {[%emt 0:01:18]} e6 {[%emt 0:08:06]} 19. Ra3 {[%emt 0:01:20]} Nf6 {[%emt 0:05:57]} 20. Be5 {[%emt 0:02:46]} Re7 {[%emt 0:05:30]} 21. Bxf6 {[%emt 0:13:25]} Bxf6 {[%emt 0:00:34]} 22. Ne5 {[%emt 0:00:59]} Bxe5 {[%emt 0:02:57]} 23. Rxe5 {[%emt 0:00:17]} Rc4 {[%emt 0:04:12]} 24. Kf1 {[%emt 0:07:51]} Rec7 {[%emt 0:00:45]} 25. Re3 {[%emt 0:00:31]} b5 {[%emt 0:10:53]} 26. Ra5 {[%emt 0:17:48]} Rxc3 {[%emt 0:03:46]} 27. Rxc3 {[%emt 0:00:19]} Rxc3 {[%emt 0:00:10]} 28. Rxa7 {[%emt 0:00:17]} Rc4 {[%emt 0:05:49]} 29. Ra5 {[%emt 0:02:59]} b4 {[%emt 0:04:44]} 30. d5 {[%emt 0:06:30]} exd5 {[%emt 0:00:25]} 31. Rxd5 {[%emt 0:00:07]} Rc1+ {[%emt 0:00:27]} 32. Ke2 {[%emt 0:00:06]} Rc3 {[%emt 0:03:16]} 33. Rd3 {[%emt 0:01:31]} Rc2+ {[%emt 0:00:20]} 34. Rd2 {[%emt 0:00:01]} Rc3 {[%emt 0:00:20]} 35. Kd1 {[%emt 0:09:21]} Ra3 {[%emt 0:00:48]} 36. Rb2 {[%emt 0:03:30]} Rd3+ {[%emt 0:03:08]} 37. Kc2 {[%emt 0:01:07]} Rc3+ {[%emt 0:00:43]} 38. Kb1 {[%emt 0:00:47]} Rc4 {[%emt 0:00:19]} 39. Rc2 {[%emt 0:00:24]} Rh4 {[%emt 0:02:39]} 40. h3 {[%emt 0:00:00]} Kf8 {[%emt 0:00:00]} 41. Kb2 {[%emt 0:01:16]} Ke7 {[%emt 0:04:04]} 42. Kb3 Rd4 {[%emt 0:01:11]} 43. Rc4 {[%emt 0:12:55]} Rd2 {[%emt 0:00:40]} 44. Rxb4 {[%emt 0:02:21]} Rxf2 {[%emt 0:00:17]} 45. Rg4 {[%emt 0:00:10]} h5 {[%emt 0:01:31]} 46. Rg3 {[%emt 0:00:01]} Kd6 {[%emt 0:03:10]} 47. Rd3+ {[%emt 0:02:09]} Kc5 {[%emt 0:01:11]} 48. Rc3+ {[%emt 0:01:01]} Kb6 {[%emt 0:01:00]} 49. Rc2 {[%emt 0:03:54]} Rf5 {[%emt 0:01:42]} 50. Rc3 {[%emt 0:04:06]} h4 {[%emt 0:04:42]} 51. Rf3 {[%emt 0:02:56]} Rg5 {[%emt 0:01:18]} 52. Rf6+ {[%emt 0:00:21]} Ka5 {[%emt 0:01:46]} 53. Rf2 {[%emt 0:00:46]} Rb5+ {[%emt 0:03:05]} 54. Kc4 {[%emt 0:00:56]} f5 {[%emt 0:00:47]} 55. Rf3 {[%emt 0:07:22]} Re5 {[%emt 0:02:31]} 56. Ra3+ {[%emt 0:01:43]} Kb6 {[%emt 0:00:09]} 57. Rd3 {[%emt 0:01:27]} g5 {[%emt 0:01:34]} 58. Rd6+ {[%emt 0:02:59]} Kc7 {[%emt 0:00:35]} 59. Rg6 {[%emt 0:00:35]} g4 {[%emt 0:01:53]} 60. hxg4 {[%emt 0:00:34]} Re4+ {[%emt 0:00:26]} 61. Kd3 {[%emt 0:01:27]} Rxg4 {[%emt 0:01:12]} 62. Rxg4 {[%emt 0:01:35]} fxg4 {[%emt 0:00:02]} 63. Ke3 {[%emt 0:00:02]} h3 1/2-1/2

[Event "IIFL Wealth 4th Mumbai Open"]
[Site "Mumbai"]
[Date "2018.12.31"]
[Round "2"]
[White "Mokashi, Rohit"]
[Black "Sangoi, Hriday"]
[Result "1-0"]
[ECO "E12"]
[WhiteElo "1641"]
[BlackElo "1401"]
[Annotator "NA"]
[PlyCount "117"]
[EventDate "2018.12.30"]
[EventType "swiss"]
[EventCountry "IND"]
[SourceTitle "playchess.com"]
[Source "ChessBase"]
[SourceQuality "1"]
[TimeControl "40/5400+30:1800+30"]

1. d4 {[%emt 0:00:00]} Nf6 {[%emt 0:00:00]} 2. Nf3 {[%emt 0:00:00]} e6 {[%emt 0:00:01]} 3. c4 {[%emt 0:00:00]} b6 {[%emt 0:00:13]} 4. a3 {[%emt 0:00:09]} Bb7 {[%emt 0:00:17]} 5. Nc3 {[%emt 0:00:11]} d5 {[%emt 0:00:20]} 6. Bf4 {[%emt 0:01:06]} Bd6 {[%emt 0:02:38]} 7. Bg3 {[%emt 0:02:50]} O-O {[%emt 0:02:17]} 8. e3 {[%emt 0:00:23]} c5 {[%emt 0:01:48]} 9. cxd5 {[%emt 0:05:22]} exd5 {[%emt 0:00:20]} 10. Be2 {[%emt 0:00:25]} Nc6 {[%emt 0:08:32]} 11. O-O {[%emt 0:06:01]} Bxg3 {[%emt 0:01:54]} 12. hxg3 {[%emt 0:00:43]} cxd4 {[%emt 0:03:53]} 13. Nxd4 {[%emt 0:00:24]} Nxd4 {[%emt 0:02:01]} 14. Qxd4 {[%emt 0:00:26]} Ne4 {[%emt 0:01:54]} 15. Rac1 {[%emt 0:09:22]} Nc5 {[%emt 0:04:07]} 16. Rcd1 {[%emt 0:05:17]} Ne6 {[%emt 0:08:39]} 17. Qe5 {[%emt 0:02:55]} Qc7 {[%emt 0:05:15]} 18. Qf5 {[%emt 0:03:44]} g6 {[%emt 0:03:10]} 19. Qf6 {[%emt 0:04:09]} Rad8 {[%emt 0:03:43]} 20. Bf3 {[%emt 0:04:57]} Qc5 {[%emt 0:05:50]} 21. Rd2 {[%emt 0:04:13]} Nc7 {[%emt 0:10:07]} 22. Rfd1 {[%emt 0:11:47]} Rd6 {[%emt 0:15:30]} 23. Qh4 {[%emt 0:05:05]} Rfd8 {[%emt 0:04:43]} 24. Ne2 {[%emt 0:04:49]} Ne6 {[%emt 0:02:06]} 25. Nd4 {[%emt 0:00:48]} Nxd4 {[%emt 0:00:45]} 26. Rxd4 {[%emt 0:00:19]} a5 {[%emt 0:01:14]} 27. Qh6 {[%emt 0:00:59]} f5 {[%emt 0:01:06]} 28. Qf4 {[%emt 0:04:47]} R6d7 {[%emt 0:07:21]} 29. g4 {[%emt 0:01:40]} Rf7 {[%emt 0:01:42]} 30. gxf5 {[%emt 0:01:06]} Rxf5 {[%emt 0:00:38]} 31. Qh4 {[%emt 0:00:42]} Rdf8 {[%emt 0:00:25]} 32. Qg3 {[%emt 0:04:30]} Qc2 {[%emt 0:00:51]} 33. R4d2 {[%emt 0:02:13]} Qc5 {[%emt 0:00:31]} 34. Qh4 {[%emt 0:00:31]} b5 {[%emt 0:00:45]} 35. b4 {[%emt 0:03:27]} axb4 {[%emt 0:00:23]} 36. axb4 {[%emt 0:00:17]} Qc4 {[%emt 0:02:19]} 37. Rd4 Qb3 {[%emt 0:00:22]} 38. Qe7 {[%emt 0:06:31]} R8f7 {[%emt 0:00:35]} 39. Qc5 {[%emt 0:02:13]} Qa4 {[%emt 0:00:34]} 40. Qc3 {[%emt 0:00:00]} Qa8 {[%emt 0:00:00]} 41. Qc5 {[%emt 0:04:35]} Qa4 {[%emt 0:02:52]} 42. Qc3 {[%emt 0:01:46]} Qa8 {[%emt 0:01:37]} 43. e4 {[%emt 0:01:46]} Rg5 {[%emt 0:02:20]} 44. exd5 {[%emt 0:01:16]} Qa2 {[%emt 0:03:18]} 45. Qe3 {[%emt 0:05:11]} h6 {[%emt 0:02:54]} 46. Kf1 {[%emt 0:07:25]} Qa8 {[%emt 0:02:33]} 47. Qd3 {[%emt 0:03:43]} Rgf5 {[%emt 0:01:26]} 48. Kg1 {[%emt 0:02:46]} Rg5 {[%emt 0:01:00]} 49. Rg4 {[%emt 0:00:37]} Qd8 {[%emt 0:02:09]} 50. Rxg5 {[%emt 0:04:17]} Qxg5 {[%emt 0:00:04]} 51. Qxb5 {[%emt 0:00:54]} h5 {[%emt 0:02:33]} 52. Qe8+ {[%emt 0:00:23]} Kg7 {[%emt 0:00:12]} 53. Qe3 {[%emt 0:00:18]} Qh4 {[%emt 0:01:02]} 54. Qd4+ {[%emt 0:00:34]} Qxd4 {[%emt 0:00:15]} 55. Rd2 Qd3 56. Rxd3 {[%emt 0:00:35]} Rd7 {[%emt 0:00:42]} 57. Rd4 {[%emt 0:01:13]} Kf6 {[%emt 0:00:11]} 58. Kh2 {[%emt 0:00:25]} Kf5 {[%emt 0:00:46]} 59. Kg3 {[%emt 0:03:25]} 1-0

[Event "IIFL Wealth 4th Mumbai Open"]
[Site "Mumbai"]
[Date "2018.12.31"]
[Round "2"]
[White "Arjun, Sidharth S"]
[Black "Sa, Kannan"]
[Result "1/2-1/2"]
[ECO "D04"]
[WhiteElo "1489"]
[BlackElo "2069"]
[Annotator "NA"]
[PlyCount "75"]
[EventDate "2018.12.30"]
[EventType "swiss"]
[EventCountry "IND"]
[SourceTitle "playchess.com"]
[Source "ChessBase"]
[SourceQuality "1"]
[TimeControl "40/5400+30:1800+30"]

1. d4 {[%emt 0:00:36]} d5 {[%emt 0:15:04]} 2. Nf3 {[%emt 0:00:08]} Nf6 {[%emt 0:00:42]} 3. e3 {[%emt 0:00:13]} Bg4 {[%emt 0:00:10]} 4. c4 {[%emt 0:01:27]} c6 {[%emt 0:00:51]} 5. Nc3 {[%emt 0:00:28]} e6 {[%emt 0:00:12]} 6. Bd3 {[%emt 0:01:29]} Nbd7 {[%emt 0:00:15]} 7. O-O {[%emt 0:01:09]} Bd6 {[%emt 0:00:53]} 8. b3 {[%emt 0:04:36]} Qb8 {[%emt 0:01:15]} 9. h3 {[%emt 0:01:52]} h5 {[%emt 0:00:40]} 10. Bb2 {[%emt 0:01:31]} Bh2+ {[%emt 0:21:11]} 11. Kh1 {[%emt 0:00:37]} g5 {[%emt 0:00:25]} 12. e4 {[%emt 0:08:31]} dxe4 {[%emt 0:17:34]} 13. Nxe4 {[%emt 0:02:16]} Nxe4 {[%emt 0:03:16]} 14. Bxe4 {[%emt 0:01:26]} Qf4 {[%emt 0:04:00]} 15. d5 {[%emt 0:05:52]} Qxe4 {[%emt 0:09:21]} 16. Bxh8 {[%emt 0:00:38]} Bxf3 {[%emt 0:00:12]} 17. Qxf3 {[%emt 0:12:48]} Qxf3 {[%emt 0:00:30]} 18. gxf3 {[%emt 0:00:04]} Bf4 {[%emt 0:01:22]} 19. dxc6 {[%emt 0:01:29]} bxc6 {[%emt 0:00:08]} 20. Bc3 {[%emt 0:00:22]} c5 {[%emt 0:09:29]} 21. Rfd1 {[%emt 0:06:54]} Ne5 {[%emt 0:04:39]} 22. Bxe5 {[%emt 0:05:48]} Bxe5 {[%emt 0:00:05]} 23. Rab1 {[%emt 0:00:07]} a5 {[%emt 0:01:18]} 24. Kg2 {[%emt 0:05:11]} h4 {[%emt 0:01:25]} 25. Kf1 {[%emt 0:01:24]} Ke7 {[%emt 0:00:36]} 26. Ke2 {[%emt 0:00:45]} Rb8 {[%emt 0:02:49]} 27. Kd3 {[%emt 0:10:28]} Rd8+ {[%emt 0:01:39]} 28. Kc2 {[%emt 0:00:25]} Bd4 {[%emt 0:01:24]} 29. Rd2 {[%emt 0:01:16]} e5 {[%emt 0:00:32]} 30. a3 {[%emt 0:00:34]} Ra8 {[%emt 0:00:46]} 31. b4 {[%emt 0:04:03]} axb4 {[%emt 0:00:01]} 32. axb4 {[%emt 0:00:08]} cxb4 {[%emt 0:00:16]} 33. Rxb4 {[%emt 0:00:15]} Ra3 {[%emt 0:00:37]} 34. Rb3 {[%emt 0:00:41]} Ra1 {[%emt 0:00:14]} 35. Rb1 {[%emt 0:01:32]} Ra3 {[%emt 0:00:10]} 36. Rb3 {[%emt 0:01:29]} Ra1 {[%emt 0:00:06]} 37. Rb1 {[%emt 0:04:50]} Ra3 {[%emt 0:00:02]} 38. Rb3 {[%emt 0:01:00]} 1/2-1/2

[Event "IIFL Wealth 4th Mumbai Open"]
[Site "Mumbai"]
[Date "2018.12.31"]
[Round "2"]
[White "Kamble, Dipankar"]
[Black "Vahdatian, Davood"]
[Result "0-1"]
[ECO "C15"]
[WhiteElo "1487"]
[BlackElo "2036"]
[Annotator "NA"]
[PlyCount "59"]
[EventDate "2018.12.30"]
[EventType "swiss"]
[EventCountry "IND"]
[SourceTitle "playchess.com"]
[Source "ChessBase"]
[SourceQuality "1"]
[TimeControl "40/5400+30:1800+30"]

1. e4 {[%emt 0:01:03]} e6 {[%emt 0:00:51]} 2. d4 {[%emt 0:00:02]} d5 {[%emt 0:00:23]} 3. Nc3 {[%emt 0:00:02]} Bb4 {[%emt 0:00:31]} 4. exd5 {[%emt 0:00:20]} exd5 {[%emt 0:00:02]} 5. a3 {[%emt 0:00:09]} Be7 {[%emt 0:01:57]} 6. Bd3 {[%emt 0:03:07]} Nc6 {[%emt 0:01:34]} 7. Nge2 {[%emt 0:02:21]} Bf6 {[%emt 0:01:07]} 8. Bf4 {[%emt 0:12:34]} a6 {[%emt 0:02:05]} 9. Qd2 {[%emt 0:03:28]} Be6 {[%emt 0:04:40]} 10. Be3 {[%emt 0:04:36]} Nge7 {[%emt 0:01:12]} 11. O-O {[%emt 0:01:32]} Qd7 {[%emt 0:05:38]} 12. Rfe1 {[%emt 0:05:05]} O-O {[%emt 0:00:31]} 13. Bg5 {[%emt 0:03:57]} Bxg5 {[%emt 0:08:20]} 14. Qxg5 {[%emt 0:00:06]} Rae8 {[%emt 0:09:41]} 15. Rad1 {[%emt 0:09:31]} Nf5 {[%emt 0:12:53]} 16. Nxd5 {[%emt 0:30:15]} f6 {[%emt 0:00:48]} 17. Qf4 {[%emt 0:01:58]} Qxd5 {[%emt 0:21:59]} 18. c4 {[%emt 0:01:23]} Qd6 {[%emt 0:01:10]} 19. Qxd6 {[%emt 0:03:06]} Nxd6 {[%emt 0:00:32]} 20. d5 {[%emt 0:00:34]} Ne5 {[%emt 0:02:22]} 21. Bxh7+ {[%emt 0:01:37]} Kxh7 {[%emt 0:00:19]} 22. dxe6 {[%emt 0:00:27]} Nexc4 {[%emt 0:05:33]} 23. Nf4 {[%emt 0:03:03]} Nb6 {[%emt 0:01:46]} 24. Rd3 {[%emt 0:02:24]} g5 {[%emt 0:01:21]} 25. Rh3+ {[%emt 0:07:36]} Kg7 {[%emt 0:00:49]} 26. Rg3 {[%emt 0:01:51]} Nf5 {[%emt 0:02:34]} 27. Rg4 {[%emt 0:00:47]} Re7 {[%emt 0:01:41]} 28. Nd3 {[%emt 0:00:33]} Rfe8 {[%emt 0:01:09]} 29. Nc5 {[%emt 0:00:27]} Nd7 {[%emt 0:00:29]} 30. Rge4 {[%emt 0:00:35]} 0-1